[Event "Titled Tuesday Blitz January 10 Early 2023"]
[White "Girsh, Daniel"]
[Black "Martinez Ramirez, Lennis"]
[WhiteFideId "30949190"]
[BlackFideId "3509079"]
[WhiteElo "2075"]
[BlackElo "2439"]
[Result "0-1"]
[Round "04"]
[TimeControl "180+1"]
[Date "2023.01.10"]
[WhiteClock "0:00:07"]
[BlackClock "0:00:33"]

1. e4 {[%clk 0:03:00]}  c5 {[%clk 0:02:58]} 2. Nf3 {[%clk 0:03:00]}  d6 {[%clk 0:02:59]} 3. d4 {[%clk 0:02:57]}  cxd4 {[%clk 0:03:00]} 4. Nxd4 {[%clk 0:02:58]}  Nf6 {[%clk 0:03:01]} 5. Nc3 {[%clk 0:02:58]}  a6 {[%clk 0:03:00]} 6. h3 {[%clk 0:02:57]}  h5 {[%clk 0:02:58]} 7. g3 {[%clk 0:02:51]}  e5 {[%clk 0:02:55]} 8. Nde2 {[%clk 0:02:51]}  b5 {[%clk 0:02:54]} 9. Bg2 {[%clk 0:02:49]}  Bb7 {[%clk 0:02:50]} 10. O-O {[%clk 0:02:48]}  Nbd7 {[%clk 0:02:49]} 11. Bg5 {[%clk 0:02:48]}  Be7 {[%clk 0:02:49]} 12. a4 {[%clk 0:02:46]}  b4 {[%clk 0:02:49]} 13. Bxf6 {[%clk 0:02:47]}  Nxf6 {[%clk 0:02:45]} 14. Nd5 {[%clk 0:02:47]}  Nxd5 {[%clk 0:02:45]} 15. exd5 {[%clk 0:02:48]}  O-O {[%clk 0:02:38]} 16. Kh2 {[%clk 0:02:39]}  h4 {[%clk 0:02:39]} 17. g4 {[%clk 0:02:38]}  Bc8 {[%clk 0:02:38]} 18. a5 {[%clk 0:02:37]}  f5 {[%clk 0:02:37]} 19. gxf5 {[%clk 0:02:26]}  Bxf5 {[%clk 0:02:38]} 20. f4 {[%clk 0:02:26]}  Rc8 {[%clk 0:02:38]} 21. c3 {[%clk 0:02:23]}  Bf6 {[%clk 0:02:36]} 22. Qd2 {[%clk 0:02:10]}  bxc3 {[%clk 0:02:33]} 23. Nxc3 {[%clk 0:02:08]}  exf4 {[%clk 0:02:29]} 24. Kh1 {[%clk 0:02:06]}  Be5 {[%clk 0:02:28]} 25. Rae1 {[%clk 0:01:58]}  Qd7 {[%clk 0:02:28]} 26. Rf3 {[%clk 0:01:49]}  Rc5 {[%clk 0:02:26]} 27. b4 {[%clk 0:01:43]}  Rc4 {[%clk 0:02:26]} 28. Ne2 {[%clk 0:01:21]}  Be4 {[%clk 0:02:18]} 29. Ng1 {[%clk 0:01:04]}  Bxf3 {[%clk 0:02:12]} 30. Nxf3 {[%clk 0:01:03]}  Bf6 {[%clk 0:02:06]} 31. Qd3 {[%clk 0:00:57]}  Qc8 {[%clk 0:01:46]} 32. Bf1 {[%clk 0:00:50]}  Rxb4 {[%clk 0:01:45]} 33. Qxa6 {[%clk 0:00:49]}  Qxa6 {[%clk 0:01:45]} 34. Bxa6 {[%clk 0:00:49]}  Ra4 {[%clk 0:01:39]} 35. Bb5 {[%clk 0:00:48]}  Rxa5 {[%clk 0:01:39]} 36. Bd7 {[%clk 0:00:49]}  Rfa8 {[%clk 0:01:28]} 37. Re6 {[%clk 0:00:41]}  Rxd5 {[%clk 0:01:25]} 38. Kg2 {[%clk 0:00:21]}  Ra2+ {[%clk 0:01:23]} 39. Kf1 {[%clk 0:00:22]}  Rd1+ {[%clk 0:01:23]} 40. Ne1 {[%clk 0:00:22]}  Kf7 {[%clk 0:01:12]} 41. Re4 {[%clk 0:00:20]}  Raa1 {[%clk 0:00:58]} 42. Bg4 {[%clk 0:00:18]}  g5 {[%clk 0:00:53]} 43. Bxd1 {[%clk 0:00:18]}  Rxd1 {[%clk 0:00:52]} 44. Ke2 {[%clk 0:00:19]}  Rd4 {[%clk 0:00:49]} 45. Kf3 {[%clk 0:00:17]}  Rd1 {[%clk 0:00:44]} 46. Ng2 {[%clk 0:00:16]}  Rf1+ {[%clk 0:00:43]} 47. Kg4 {[%clk 0:00:16]}  Rg1 {[%clk 0:00:43]} 48. Kf3 {[%clk 0:00:16]}  Be5 {[%clk 0:00:40]} 49. Ra4 {[%clk 0:00:16]}  Ke6 {[%clk 0:00:40]} 50. Ra8 {[%clk 0:00:13]}  Kf5 {[%clk 0:00:39]} 51. Rf8+ {[%clk 0:00:13]}  Bf6 {[%clk 0:00:40]} 52. Kf2 {[%clk 0:00:12]}  Rb1 {[%clk 0:00:39]} 53. Ne1 {[%clk 0:00:11]}  Rb2+ {[%clk 0:00:39]} 54. Kf1 {[%clk 0:00:11]}  Rb3 {[%clk 0:00:38]} 55. Kg2 {[%clk 0:00:10]}  Rg3+ {[%clk 0:00:38]} 56. Kh2 {[%clk 0:00:11]}  d5 {[%clk 0:00:38]} 57. Re8 {[%clk 0:00:09]}  Be5 {[%clk 0:00:37]} 58. Rf8+ {[%clk 0:00:08]}  Ke4 {[%clk 0:00:37]} 59. Ng2 {[%clk 0:00:07]}  f3 {[%clk 0:00:38]} 60. Ne1 {[%clk 0:00:07]}  Rg2+ {[%clk 0:00:37]} 61. Kh1 {[%clk 0:00:07]}  Rh2+ {[%clk 0:00:37]} 62. Kg1 {[%clk 0:00:07]}  Rxh3 {[%clk 0:00:32]} 63. Kf2 {[%clk 0:00:07]}  Bd4+ {[%clk 0:00:33]} 64. Kf1 {[%clk 0:00:07]}  Rh1# {[%clk 0:00:33]} 0-1


[Site "https://www.chess.com"]

[Event "Titled Tuesday Blitz January 10 Early 2023"]
[White "Atakhan, Abtin"]
[Black "Dudzinski, Pawel"]
[WhiteFideId "22502203"]
[BlackFideId "1117890"]
[WhiteElo "2189"]
[BlackElo "2099"]
[Result "0-1"]
[Round "04"]
[TimeControl "180+1"]
[Date "2023.01.10"]
[WhiteClock "0:00:09"]
[BlackClock "0:00:05"]

1. c4 {[%clk 0:03:00]}  e5 {[%clk 0:02:59]} 2. g3 {[%clk 0:02:58]}  c5 {[%clk 0:03:00]} 3. Bg2 {[%clk 0:02:58]}  Nc6 {[%clk 0:03:00]} 4. Nc3 {[%clk 0:02:59]}  g6 {[%clk 0:03:01]} 5. d3 {[%clk 0:02:58]}  Bg7 {[%clk 0:03:01]} 6. Nf3 {[%clk 0:02:59]}  Nge7 {[%clk 0:03:01]} 7. O-O {[%clk 0:02:59]}  Rb8 {[%clk 0:03:02]} 8. Ne1 {[%clk 0:02:59]}  a6 {[%clk 0:03:02]} 9. b3 {[%clk 0:02:54]}  b5 {[%clk 0:03:00]} 10. Bb2 {[%clk 0:02:54]}  d6 {[%clk 0:02:59]} 11. Nc2 {[%clk 0:02:54]}  O-O {[%clk 0:02:58]} 12. Ne3 {[%clk 0:02:54]}  f5 {[%clk 0:02:59]} 13. Ned5 {[%clk 0:02:54]}  f4 {[%clk 0:02:57]} 14. e3 {[%clk 0:02:51]}  b4 {[%clk 0:02:49]} 15. Ne4 {[%clk 0:02:46]}  Nxd5 {[%clk 0:02:42]} 16. cxd5 {[%clk 0:02:47]}  Ne7 {[%clk 0:02:43]} 17. exf4 {[%clk 0:02:47]}  exf4 {[%clk 0:02:18]} 18. Bxg7 {[%clk 0:02:48]}  Kxg7 {[%clk 0:02:18]} 19. d4 {[%clk 0:02:49]}  Nxd5 {[%clk 0:02:13]} 20. dxc5 {[%clk 0:02:48]}  dxc5 {[%clk 0:02:09]} 21. Nxc5 {[%clk 0:02:47]}  Nc3 {[%clk 0:02:09]} 22. Qxd8 {[%clk 0:02:25]}  Rxd8 {[%clk 0:02:10]} 23. Rfe1 {[%clk 0:02:21]}  fxg3 {[%clk 0:02:06]} 24. hxg3 {[%clk 0:02:21]}  Kf7 {[%clk 0:01:59]} 25. a3 {[%clk 0:02:20]}  Rb5 {[%clk 0:01:36]} 26. axb4 {[%clk 0:02:18]}  Rxb4 {[%clk 0:01:36]} 27. Re3 {[%clk 0:01:59]}  Rd1+ {[%clk 0:00:36]} 28. Rxd1 {[%clk 0:01:58]}  Nxd1 {[%clk 0:00:37]} 29. Rd3 {[%clk 0:01:55]}  Nb2 {[%clk 0:00:36]} 30. Rd2 {[%clk 0:01:55]}  Rb5 {[%clk 0:00:36]} 31. Ne4 {[%clk 0:01:51]}  Rxb3 {[%clk 0:00:32]} 32. Nd6+ {[%clk 0:01:51]}  Kf6 {[%clk 0:00:23]} 33. Nxc8 {[%clk 0:01:50]}  Nc4 {[%clk 0:00:20]} 34. Rd7 {[%clk 0:01:50]}  Rb1+ {[%clk 0:00:17]} 35. Kh2 {[%clk 0:01:49]}  Rb2 {[%clk 0:00:17]} 36. Rc7 {[%clk 0:01:47]}  Ne5 {[%clk 0:00:15]} 37. Nd6 {[%clk 0:01:31]}  Ng4+ {[%clk 0:00:12]} 38. Kg1 {[%clk 0:01:31]}  Nxf2 {[%clk 0:00:09]} 39. Rf7+ {[%clk 0:01:28]}  Ke6 {[%clk 0:00:08]} 40. Rxf2 {[%clk 0:01:04]}  Rxf2 {[%clk 0:00:09]} 41. Kxf2 {[%clk 0:01:04]}  Kxd6 {[%clk 0:00:10]} 42. Kf3 {[%clk 0:01:02]}  Ke5 {[%clk 0:00:10]} 43. Kg4 {[%clk 0:01:03]}  h6 {[%clk 0:00:10]} 44. Bf1 {[%clk 0:01:02]}  a5 {[%clk 0:00:10]} 45. Bb5 {[%clk 0:01:02]}  Kf6 {[%clk 0:00:05]} 46. Kf4 {[%clk 0:01:01]}  Ke6 {[%clk 0:00:03]} 47. Be8 {[%clk 0:01:01]}  Kf6 {[%clk 0:00:03]} 48. Ke4 {[%clk 0:01:01]}  Kg5 {[%clk 0:00:02]} 49. Kf3 {[%clk 0:01:02]}  h5 {[%clk 0:00:02]} 50. Bd7 {[%clk 0:00:57]}  h4 {[%clk 0:00:02]} 51. g4 {[%clk 0:00:57]}  h3 {[%clk 0:00:03]} 52. Kg3 {[%clk 0:00:56]}  a4 {[%clk 0:00:03]} 53. Kxh3 {[%clk 0:00:55]}  a3 {[%clk 0:00:03]} 54. Be6 {[%clk 0:00:55]}  Kf4 {[%clk 0:00:04]} 55. Kh4 {[%clk 0:00:52]}  Ke5 {[%clk 0:00:03]} 56. Bf7 {[%clk 0:00:51]}  Kf4 {[%clk 0:00:04]} 57. Ba2 {[%clk 0:00:47]}  Kf3 {[%clk 0:00:04]} 58. Kg5 {[%clk 0:00:46]}  Kg3 {[%clk 0:00:04]} 59. Bd5 {[%clk 0:00:45]}  Kh3 {[%clk 0:00:04]} 60. Kf4 {[%clk 0:00:44]}  Kh4 {[%clk 0:00:04]} 61. Be6 {[%clk 0:00:42]}  Kh3 {[%clk 0:00:03]} 62. Bc4 {[%clk 0:00:16]}  Kh4 {[%clk 0:00:03]} 63. Bd5 {[%clk 0:00:17]}  Kh3 {[%clk 0:00:03]} 64. Be6 {[%clk 0:00:17]}  Kh4 {[%clk 0:00:04]} 65. Ba2 {[%clk 0:00:17]}  Kh3 {[%clk 0:00:04]} 66. Kg5 {[%clk 0:00:17]}  Kg3 {[%clk 0:00:05]} 67. Be6 {[%clk 0:00:18]}  Kf3 {[%clk 0:00:05]} 68. Bf7 {[%clk 0:00:18]}  Kg3 {[%clk 0:00:05]} 69. Bd5 {[%clk 0:00:09]}  Kh3 {[%clk 0:00:05]} 0-1


[Site "https://www.chess.com"]

[Event "Titled Tuesday Blitz January 10 Early 2023"]
[White "Urbina Perez, Juan Antonio"]
[Black "Volkov, Maksim"]
[WhiteFideId "2217368"]
[BlackFideId "54123070"]
[WhiteElo "2197"]
[BlackElo "2257"]
[Result "0-1"]
[Round "04"]
[TimeControl "180+1"]
[Date "2023.01.10"]
[WhiteClock "0:00:01"]
[BlackClock "0:00:30"]

1. e4 {[%clk 0:03:00]}  c5 {[%clk 0:02:58]} 2. Nf3 {[%clk 0:03:00]}  d6 {[%clk 0:02:59]} 3. d4 {[%clk 0:02:57]}  cxd4 {[%clk 0:02:59]} 4. Nxd4 {[%clk 0:02:57]}  Nf6 {[%clk 0:02:59]} 5. Nc3 {[%clk 0:02:58]}  a6 {[%clk 0:03:00]} 6. Be3 {[%clk 0:02:58]}  e5 {[%clk 0:03:00]} 7. Nf3 {[%clk 0:02:56]}  Be7 {[%clk 0:02:59]} 8. Bc4 {[%clk 0:02:57]}  Be6 {[%clk 0:02:59]} 9. Bxe6 {[%clk 0:02:54]}  fxe6 {[%clk 0:02:59]} 10. Qe2 {[%clk 0:02:36]}  Nc6 {[%clk 0:02:54]} 11. Qc4 {[%clk 0:02:30]}  Qd7 {[%clk 0:02:54]} 12. Ng5 {[%clk 0:02:22]}  d5 {[%clk 0:02:51]} 13. Qb3 {[%clk 0:02:08]}  d4 {[%clk 0:02:23]} 14. O-O-O {[%clk 0:02:06]}  Nd8 {[%clk 0:02:17]} 15. f4 {[%clk 0:01:58]}  Ng4 {[%clk 0:01:56]} 16. Bg1 {[%clk 0:01:46]}  Qc6 {[%clk 0:01:44]} 17. Ne2 {[%clk 0:01:38]}  O-O {[%clk 0:01:31]} 18. h3 {[%clk 0:01:31]}  Nh6 {[%clk 0:01:26]} 19. Nf3 {[%clk 0:01:18]}  Qxe4 {[%clk 0:01:23]} 20. Re1 {[%clk 0:00:44]}  Rc8 {[%clk 0:01:01]} 21. Nexd4 {[%clk 0:00:42]}  Qxf4+ {[%clk 0:01:00]} 22. Be3 {[%clk 0:00:36]}  Qf7 {[%clk 0:00:58]} 23. Nxe5 {[%clk 0:00:34]}  Qh5 {[%clk 0:00:49]} 24. Nxe6 {[%clk 0:00:20]}  Nxe6 {[%clk 0:00:48]} 25. Qxe6+ {[%clk 0:00:20]}  Nf7 {[%clk 0:00:42]} 26. Nxf7 {[%clk 0:00:17]}  Qxf7 {[%clk 0:00:43]} 27. Qxf7+ {[%clk 0:00:17]}  Rxf7 {[%clk 0:00:44]} 28. Rhf1 {[%clk 0:00:16]}  Bf6 {[%clk 0:00:45]} 29. c3 {[%clk 0:00:15]}  b5 {[%clk 0:00:44]} 30. Kc2 {[%clk 0:00:14]}  b4 {[%clk 0:00:44]} 31. Bd2 {[%clk 0:00:15]}  Rcf8 {[%clk 0:00:40]} 32. Rf3 {[%clk 0:00:13]}  Rc8 {[%clk 0:00:37]} 33. Ref1 {[%clk 0:00:13]}  Rfc7 {[%clk 0:00:37]} 34. g3 {[%clk 0:00:12]}  a5 {[%clk 0:00:35]} 35. g4 {[%clk 0:00:11]}  a4 {[%clk 0:00:33]} 36. g5 {[%clk 0:00:10]}  Be5 {[%clk 0:00:34]} 37. Rf5 {[%clk 0:00:09]}  Rc5 {[%clk 0:00:33]} 38. Be3 {[%clk 0:00:08]}  Rb5 {[%clk 0:00:32]} 39. Kd3 {[%clk 0:00:06]}  bxc3 {[%clk 0:00:32]} 40. bxc3 {[%clk 0:00:06]}  Rxc3+ {[%clk 0:00:32]} 41. Ke4 {[%clk 0:00:06]}  Rc4+ {[%clk 0:00:32]} 42. Kd3 {[%clk 0:00:06]}  Rc8 {[%clk 0:00:32]} 43. Bd2 {[%clk 0:00:03]}  Rd8+ {[%clk 0:00:32]} 44. Ke2 {[%clk 0:00:03]}  Re8 {[%clk 0:00:32]} 45. Kd3 {[%clk 0:00:02]}  Rd5+ {[%clk 0:00:31]} 46. Kc2 {[%clk 0:00:02]}  Rc8+ {[%clk 0:00:31]} 47. Kd1 {[%clk 0:00:02]}  Rcd8 {[%clk 0:00:31]} 48. R1f2 {[%clk 0:00:02]}  g6 {[%clk 0:00:30]} 49. Rf7 {[%clk 0:00:01]}  Bc3 {[%clk 0:00:30]} 0-1


[Site "https://www.chess.com"]

[Event "Titled Tuesday Blitz January 10 Early 2023"]
[White "Tologon tegin, Semetei"]
[Black "Szyszylo, Rafal"]
[WhiteFideId "13800574"]
[BlackFideId "1109626"]
[WhiteElo "2247"]
[BlackElo "1951"]
[Result "1-0"]
[Round "04"]
[TimeControl "180+1"]
[Date "2023.01.10"]
[WhiteClock "0:00:03"]
[BlackClock "0:00:06"]

1. e4 {[%clk 0:02:46]}  d6 {[%clk 0:02:58]} 2. d4 {[%clk 0:02:44]}  Nf6 {[%clk 0:02:58]} 3. Nc3 {[%clk 0:02:42]}  g6 {[%clk 0:02:56]} 4. Bf4 {[%clk 0:02:38]}  c6 {[%clk 0:02:55]} 5. Qd2 {[%clk 0:02:33]}  b5 {[%clk 0:02:55]} 6. Bd3 {[%clk 0:02:31]}  Nbd7 {[%clk 0:02:55]} 7. Nf3 {[%clk 0:02:25]}  Nb6 {[%clk 0:02:54]} 8. O-O {[%clk 0:02:20]}  Bg7 {[%clk 0:02:54]} 9. a4 {[%clk 0:02:15]}  Nc4 {[%clk 0:02:54]} 10. Bxc4 {[%clk 0:02:07]}  bxc4 {[%clk 0:02:54]} 11. e5 {[%clk 0:01:30]}  dxe5 {[%clk 0:02:51]} 12. Nxe5 {[%clk 0:01:30]}  Bb7 {[%clk 0:02:35]} 13. Nxc4 {[%clk 0:01:28]}  O-O {[%clk 0:02:15]} 14. Rfe1 {[%clk 0:01:24]}  Rc8 {[%clk 0:02:08]} 15. Rad1 {[%clk 0:01:20]}  e6 {[%clk 0:01:45]} 16. Bd6 {[%clk 0:01:11]}  Re8 {[%clk 0:01:43]} 17. Be5 {[%clk 0:01:11]}  Re7 {[%clk 0:01:09]} 18. Nd6 {[%clk 0:01:09]}  Ra8 {[%clk 0:01:07]} 19. Qd3 {[%clk 0:00:40]}  a5 {[%clk 0:01:06]} 20. Qf3 {[%clk 0:00:18]}  Nd5 {[%clk 0:01:05]} 21. Bxg7 {[%clk 0:00:18]}  Kxg7 {[%clk 0:01:06]} 22. Nde4 {[%clk 0:00:16]}  Nxc3 {[%clk 0:01:01]} 23. Qf6+ {[%clk 0:00:16]}  Kg8 {[%clk 0:01:00]} 24. bxc3 {[%clk 0:00:16]}  Rd7 {[%clk 0:00:59]} 25. Qf4 {[%clk 0:00:17]}  Kg7 {[%clk 0:00:48]} 26. Rd3 {[%clk 0:00:16]}  Rd5 {[%clk 0:00:48]} 27. Rh3 {[%clk 0:00:15]}  h5 {[%clk 0:00:47]} 28. Nc5 {[%clk 0:00:11]}  Bc8 {[%clk 0:00:46]} 29. Rg3 {[%clk 0:00:11]}  Rf5 {[%clk 0:00:45]} 30. Qe3 {[%clk 0:00:10]}  Qd5 {[%clk 0:00:45]} 31. h4 {[%clk 0:00:08]}  Rb8 {[%clk 0:00:44]} 32. Qd3 {[%clk 0:00:08]}  Rf4 {[%clk 0:00:36]} 33. Re5 {[%clk 0:00:06]}  Qd6 {[%clk 0:00:34]} 34. Re1 {[%clk 0:00:04]}  Rb2 {[%clk 0:00:33]} 35. Qd2 {[%clk 0:00:03]}  Rxh4 {[%clk 0:00:27]} 36. Qg5 {[%clk 0:00:03]}  Rg4 {[%clk 0:00:27]} 37. Rxg4 {[%clk 0:00:03]}  hxg4 {[%clk 0:00:28]} 38. Qxg4 {[%clk 0:00:03]}  Rxc2 {[%clk 0:00:27]} 39. Ne4 {[%clk 0:00:03]}  Qe7 {[%clk 0:00:26]} 40. Qf4 {[%clk 0:00:03]}  Ra2 {[%clk 0:00:23]} 41. Qe5+ {[%clk 0:00:02]}  Kg8 {[%clk 0:00:21]} 42. Qb8 {[%clk 0:00:02]}  Qd8 {[%clk 0:00:19]} 43. Re3 {[%clk 0:00:02]}  Kg7 {[%clk 0:00:18]} 44. Kh2 {[%clk 0:00:02]}  Qh8+ {[%clk 0:00:12]} 45. Rh3 {[%clk 0:00:02]}  Qf8 {[%clk 0:00:09]} 46. Qe5+ {[%clk 0:00:03]}  f6 {[%clk 0:00:09]} 47. Nxf6 {[%clk 0:00:03]}  Rxf2 {[%clk 0:00:06]} 48. Rh7# {[%clk 0:00:03]} 1-0


[Site "https://www.chess.com"]

[Event "Titled Tuesday Blitz January 10 Early 2023"]
[White "Boder, Jan"]
[Black "Sourath Biswas"]
[WhiteFideId "16243226"]
[BlackFideId "35091484"]
[WhiteElo "2241"]
[BlackElo "2164"]
[Result "1-0"]
[Round "04"]
[TimeControl "180+1"]
[Date "2023.01.10"]
[WhiteClock "0:00:06"]
[BlackClock "0:00:21"]

1. c4 {[%clk 0:03:00]}  Nf6 {[%clk 0:03:00]} 2. g3 {[%clk 0:03:00]}  g6 {[%clk 0:03:01]} 3. Bg2 {[%clk 0:03:00]}  Bg7 {[%clk 0:03:01]} 4. Nc3 {[%clk 0:03:01]}  O-O {[%clk 0:03:02]} 5. e4 {[%clk 0:03:01]}  d6 {[%clk 0:03:03]} 6. Nge2 {[%clk 0:03:01]}  c5 {[%clk 0:03:02]} 7. O-O {[%clk 0:03:01]}  Nc6 {[%clk 0:03:03]} 8. d3 {[%clk 0:03:02]}  a6 {[%clk 0:03:01]} 9. Rb1 {[%clk 0:02:56]}  Rb8 {[%clk 0:03:01]} 10. a3 {[%clk 0:02:55]}  Bd7 {[%clk 0:02:52]} 11. b4 {[%clk 0:02:52]}  cxb4 {[%clk 0:02:53]} 12. axb4 {[%clk 0:02:53]}  b5 {[%clk 0:02:54]} 13. cxb5 {[%clk 0:02:50]}  axb5 {[%clk 0:02:55]} 14. d4 {[%clk 0:02:45]}  e5 {[%clk 0:02:55]} 15. d5 {[%clk 0:02:44]}  Ne7 {[%clk 0:02:55]} 16. f3 {[%clk 0:02:31]}  Qb6+ {[%clk 0:02:52]} 17. Kh1 {[%clk 0:02:31]}  Kh8 {[%clk 0:02:51]} 18. Qd3 {[%clk 0:02:31]}  Ra8 {[%clk 0:02:37]} 19. Be3 {[%clk 0:02:31]}  Qb7 {[%clk 0:02:38]} 20. Ra1 {[%clk 0:02:28]}  Rfc8 {[%clk 0:02:38]} 21. Kg1 {[%clk 0:02:17]}  Nfg8 {[%clk 0:02:37]} 22. Qd2 {[%clk 0:02:07]}  f5 {[%clk 0:02:35]} 23. Qb2 {[%clk 0:02:03]}  Nf6 {[%clk 0:02:33]} 24. h3 {[%clk 0:02:02]}  h6 {[%clk 0:02:32]} 25. Rxa8 {[%clk 0:01:55]}  Rxa8 {[%clk 0:02:32]} 26. Nc1 {[%clk 0:01:56]}  g5 {[%clk 0:02:20]} 27. Nb3 {[%clk 0:01:55]}  g4 {[%clk 0:02:15]} 28. Na5 {[%clk 0:01:41]}  Qa6 {[%clk 0:02:05]} 29. hxg4 {[%clk 0:01:23]}  fxg4 {[%clk 0:02:03]} 30. f4 {[%clk 0:01:23]}  Nh5 {[%clk 0:02:03]} 31. f5 {[%clk 0:00:56]}  Nxg3 {[%clk 0:01:28]} 32. f6 {[%clk 0:00:56]}  Nxf1 {[%clk 0:01:28]} 33. fxg7+ {[%clk 0:00:57]}  Kxg7 {[%clk 0:01:29]} 34. Bxf1 {[%clk 0:00:58]}  Ng6 {[%clk 0:01:22]} 35. Qh2 {[%clk 0:00:51]}  Rh8 {[%clk 0:01:17]} 36. Ne2 {[%clk 0:00:49]}  h5 {[%clk 0:01:05]} 37. Ng3 {[%clk 0:00:50]}  h4 {[%clk 0:01:01]} 38. Nf5+ {[%clk 0:00:50]}  Bxf5 {[%clk 0:00:39]} 39. exf5 {[%clk 0:00:50]}  Ne7 {[%clk 0:00:24]} 40. Qf2 {[%clk 0:00:40]}  Ng8 {[%clk 0:00:08]} 41. Bg5 {[%clk 0:00:40]}  Qc8 {[%clk 0:00:07]} 42. Bxh4 {[%clk 0:00:37]}  Nf6 {[%clk 0:00:04]} 43. Bxf6+ {[%clk 0:00:28]}  Kxf6 {[%clk 0:00:04]} 44. Nc6 {[%clk 0:00:28]}  Qxf5 {[%clk 0:00:04]} 45. Qxf5+ {[%clk 0:00:28]}  Kxf5 {[%clk 0:00:05]} 46. Bd3+ {[%clk 0:00:20]}  Kf4 {[%clk 0:00:05]} 47. Bxb5 {[%clk 0:00:21]}  Rh3 {[%clk 0:00:03]} 48. Bc4 {[%clk 0:00:19]}  Rc3 {[%clk 0:00:03]} 49. Bf1 {[%clk 0:00:16]}  g3 {[%clk 0:00:03]} 50. b5 {[%clk 0:00:16]}  Kf3 {[%clk 0:00:01]} 51. Bg2+ {[%clk 0:00:15]}  Ke3 {[%clk 0:00:01]} 52. Ne7 {[%clk 0:00:10]}  Rc1+ {[%clk 0:00:02]} 53. Bf1 {[%clk 0:00:11]}  Kf3 {[%clk 0:00:03]} 54. Ng6 {[%clk 0:00:10]}  Ke3 {[%clk 0:00:02]} 55. Nh4 {[%clk 0:00:08]}  Rb1 {[%clk 0:00:02]} 56. Kg2 {[%clk 0:00:08]}  Kd4 {[%clk 0:00:03]} 57. Nf3+ {[%clk 0:00:05]}  Kxd5 {[%clk 0:00:04]} 58. Nd2 {[%clk 0:00:06]}  Kc5 {[%clk 0:00:04]} 59. Kxg3 {[%clk 0:00:05]}  Rb2 {[%clk 0:00:04]} 60. Ne4+ {[%clk 0:00:04]}  Kb6 {[%clk 0:00:04]} 61. Nxd6 {[%clk 0:00:05]}  Rb3+ {[%clk 0:00:05]} 62. Kg4 {[%clk 0:00:05]}  Rd3 {[%clk 0:00:05]} 63. Bxd3 {[%clk 0:00:05]}  Kc5 {[%clk 0:00:06]} 64. Ne4+ {[%clk 0:00:05]}  Kd4 {[%clk 0:00:06]} 65. Bf1 {[%clk 0:00:05]}  Kd5 {[%clk 0:00:06]} 66. Kf3 {[%clk 0:00:05]}  Kd4 {[%clk 0:00:05]} 67. Nf6 {[%clk 0:00:05]}  Kc5 {[%clk 0:00:05]} 68. Ke4 {[%clk 0:00:06]}  Kb6 {[%clk 0:00:06]} 69. Kxe5 {[%clk 0:00:07]}  Kc5 {[%clk 0:00:06]} 70. Ne4+ {[%clk 0:00:06]}  Kb6 {[%clk 0:00:07]} 71. Kd5 {[%clk 0:00:07]}  Ka5 {[%clk 0:00:08]} 72. Kc5 {[%clk 0:00:07]}  Ka4 {[%clk 0:00:09]} 73. b6 {[%clk 0:00:07]}  Kb3 {[%clk 0:00:10]} 74. b7 {[%clk 0:00:08]}  Kc2 {[%clk 0:00:11]} 75. b8=Q {[%clk 0:00:09]}  Kd1 {[%clk 0:00:12]} 76. Qd6+ {[%clk 0:00:09]}  Ke1 {[%clk 0:00:13]} 77. Nf6 {[%clk 0:00:03]}  Kxf1 {[%clk 0:00:14]} 78. Qf4+ {[%clk 0:00:04]}  Ke2 {[%clk 0:00:14]} 79. Ng4 {[%clk 0:00:03]}  Kd3 {[%clk 0:00:15]} 80. Qf3+ {[%clk 0:00:03]}  Kc2 {[%clk 0:00:16]} 81. Qf2+ {[%clk 0:00:03]}  Kd3 {[%clk 0:00:17]} 82. Qf3+ {[%clk 0:00:04]}  Kc2 {[%clk 0:00:18]} 83. Kd4 {[%clk 0:00:04]}  Kd2 {[%clk 0:00:18]} 84. Qd3+ {[%clk 0:00:04]}  Kc1 {[%clk 0:00:19]} 85. Qe2 {[%clk 0:00:04]}  Kb1 {[%clk 0:00:20]} 86. Kc3 {[%clk 0:00:05]}  Ka1 {[%clk 0:00:21]} 87. Qb2# {[%clk 0:00:06]} 1-0


[Site "https://www.chess.com"]

[Event "Titled Tuesday Blitz January 10 Early 2023"]
[White "Le, Tuan Minh"]
[Black "Guliev, Logman"]
[WhiteFideId "12401153"]
[BlackFideId "13400061"]
[WhiteElo "2558"]
[BlackElo "2161"]
[Result "1-0"]
[Round "04"]
[TimeControl "180+1"]
[Date "2023.01.10"]
[WhiteClock "0:00:15"]
[BlackClock "0:00:06"]

1. d4 {[%clk 0:03:00]}  Nf6 {[%clk 0:02:55]} 2. Nf3 {[%clk 0:03:01]}  g6 {[%clk 0:02:54]} 3. Bg5 {[%clk 0:03:01]}  Bg7 {[%clk 0:02:54]} 4. Nbd2 {[%clk 0:03:01]}  d5 {[%clk 0:02:54]} 5. c3 {[%clk 0:03:01]}  O-O {[%clk 0:02:55]} 6. e3 {[%clk 0:03:00]}  Nbd7 {[%clk 0:02:54]} 7. Bd3 {[%clk 0:03:00]}  Qe8 {[%clk 0:02:54]} 8. O-O {[%clk 0:02:58]}  e5 {[%clk 0:02:54]} 9. Bxf6 {[%clk 0:02:02]}  Bxf6 {[%clk 0:02:51]} 10. e4 {[%clk 0:02:03]}  exd4 {[%clk 0:02:43]} 11. cxd4 {[%clk 0:02:01]}  dxe4 {[%clk 0:02:40]} 12. Nxe4 {[%clk 0:02:02]}  Bg7 {[%clk 0:02:39]} 13. Re1 {[%clk 0:02:01]}  Qd8 {[%clk 0:02:40]} 14. Bc4 {[%clk 0:01:45]}  Nb6 {[%clk 0:02:37]} 15. Bb3 {[%clk 0:01:46]}  Bg4 {[%clk 0:02:35]} 16. h3 {[%clk 0:01:46]}  Bxf3 {[%clk 0:01:54]} 17. Qxf3 {[%clk 0:01:47]}  Qxd4 {[%clk 0:01:53]} 18. Re2 {[%clk 0:01:33]}  Rae8 {[%clk 0:01:49]} 19. Rae1 {[%clk 0:01:32]}  Re5 {[%clk 0:01:41]} 20. a3 {[%clk 0:00:56]}  Rf5 {[%clk 0:01:39]} 21. Qg3 {[%clk 0:00:54]}  Qe5 {[%clk 0:01:32]} 22. Qd3 {[%clk 0:00:50]}  Qd4 {[%clk 0:01:23]} 23. Qc2 {[%clk 0:00:45]}  c6 {[%clk 0:01:13]} 24. Rd1 {[%clk 0:00:45]}  Qe5 {[%clk 0:00:53]} 25. Nd6 {[%clk 0:00:45]}  Qf6 {[%clk 0:00:37]} 26. Nxf5 {[%clk 0:00:44]}  gxf5 {[%clk 0:00:38]} 27. Rd3 {[%clk 0:00:38]}  f4 {[%clk 0:00:32]} 28. Qc5 {[%clk 0:00:33]}  Qg6 {[%clk 0:00:20]} 29. Rf3 {[%clk 0:00:32]}  Rd8 {[%clk 0:00:18]} 30. Rxf4 {[%clk 0:00:28]}  Nd5 {[%clk 0:00:18]} 31. Bxd5 {[%clk 0:00:28]}  cxd5 {[%clk 0:00:15]} 32. Rg4 {[%clk 0:00:27]}  Qb1+ {[%clk 0:00:16]} 33. Kh2 {[%clk 0:00:27]}  Kh8 {[%clk 0:00:16]} 34. Qxd5 {[%clk 0:00:19]}  Rg8 {[%clk 0:00:09]} 35. Qxf7 {[%clk 0:00:18]}  Qd3 {[%clk 0:00:05]} 36. Re8 {[%clk 0:00:17]}  Qd6+ {[%clk 0:00:06]} 37. g3 {[%clk 0:00:15]} 1-0


[Site "https://www.chess.com"]